bitfinex/quotes_ETHUSD_20260107
["timestamp","ask_amount","ask_price","bid_price","bid_amount"]
[1767744236848,0.792,3289.9,3287.9,0.001]
[1767744236849,0.98830387,3289.4,3287.9,0.001]
[1767744237150,0.98830387,3289.2,3287.9,0.001]
[1767744238562,6.08069076,3289.1,3287.9,0.001]
[1767744238761,7.17081789,3289.1,3287.9,0.001]
[1767744239277,4.13047251,3289.1,3287.9,0.94027652]
[1767744239462,0.793,3289.7,3288.1,0.93927652]
[1767744240273,9.11912715,3289.8,3288.3,0.93927652]
[1767744240577,6.07976652,3289.6,3288.3,0.93927652]
[1767744240750,9.11964978,3289.6,3288.3,0.93927652]
[1767744240948,0.99126498,3289.5,3288.3,0.93927652]
[1767744241971,1.02175727,3289.5,3288.3,0.93927652]
[1767744242779,6.08013618,3289.4,3288.3,0.93927652]
[1767744243176,6.11062847,3289.4,3288.3,0.93927652]
[1767744244071,0.99126498,3289.5,3288.4,1.02660121]
[1767744244072,3.04000369,3289.5,3288.4,1.02660121]
[1767744244269,3.0395225,3290.0,3288.6,0.99619129]
[1767744244270,0.793,3290.0,3288.6,0.99619129]
[1767744244779,0.03049229,3289.9,3288.6,0.99619129]
[1767744244963,3.03969846,3289.8,3288.7,0.99619129]
[1767744245160,6.07939692,3289.8,3288.7,0.99619129]
[1767744245365,0.03049229,3289.7,3288.7,0.99619129]
[1767744246485,3.03969846,3289.8,3288.7,0.99619129]
[1767744246681,3.03969846,3289.8,3288.9,0.99619129]
[1767744247181,0.03049229,3289.8,3288.9,0.99619129]
[1767744247767,6.07921212,3289.9,3288.9,0.99619129]
[1767744247969,0.03049229,3289.8,3288.9,0.99619129]
[1767744249261,6.07958172,3289.7,3288.9,0.99619129]
[1767744249461,0.03049229,3289.6,3288.9,0.99619129]
[1767744252175,6.07995136,3289.5,3288.9,0.99619129]
[1767744252374,3.03997568,3289.5,3288.9,0.99619129]
[1767744252574,3.07046797,3289.5,3288.9,0.99619129]
[1767744253991,3.06767179,3289.5,3288.9,0.99619129]
[1767744258170,0.03049229,3289.5,3288.9,0.99619129]
[1767744258495,3.03971631,3289.8,3288.9,0.99619129]
[1767744258496,0.03049229,3289.7,3288.9,0.99619129]
[1767744258795,0.002,3289.6,3288.9,0.99619129]
[1767744259989,0.002,3289.6,3288.7,0.001]
[1767744260681,0.002,3289.6,3288.7,0.99719129]
[1767744263208,0.92072069,3289.5,3288.7,0.99719129]
[1767744263507,0.03049229,3289.4,3288.7,0.99719129]
[1767744263872,0.92072069,3289.2,3288.7,0.001]
[1767744264180,3.04016052,3289.3,3288.7,0.001]
[1767744264381,3.04016052,3289.3,3288.7,0.99719129]
[1767744265091,6.08032104,3289.3,3288.7,0.99719129]
[1767744265292,6.69140237,3289.3,3288.7,0.001]
[1767744265488,0.92072069,3289.2,3288.3,0.795]
[1767744265690,0.92072069,3289.2,3288.3,1.56862179]
[1767744265880,0.92072069,3289.2,3288.3,2.56481308]
[1767744266074,0.92072069,3289.4,3288.4,0.99619129]
[1767744266280,0.95121298,3289.3,3288.3,2.56481308]
[1767744266705,0.95121298,3289.3,3288.4,0.99619129]
[1767744266902,0.95121298,3289.3,3288.2,3.9]
[1767744267097,0.92072069,3289.1,3288.2,3.9]
[1767744267300,0.92072069,3289.1,3287.9,0.001]
[1767744267497,0.92072069,3289.0,3287.9,0.001]
[1767744268009,0.92072069,3288.8,3287.9,0.001]
[1767744268210,0.92072069,3288.7,3287.9,0.001]
[1767744268810,0.92072069,3288.5,3286.9,0.99619129]
[1767744269112,0.793,3288.6,3287.1,0.99619129]
[1767744269113,0.17137207,3288.4,3287.1,0.99619129]
[1767744269482,0.92072069,3288.3,3287.1,0.99619129]
[1767744269686,0.92072069,3288.3,3287.0,0.795]
[1767744269888,0.92072069,3288.3,3286.6,0.03042658]
[1767744270097,7.00344575,3288.0,3286.7,1.20192807]
[1767744270411,0.92072069,3287.9,3286.7,1.20192807]
[1767744270592,0.92072069,3287.9,3286.7,0.795]
[1767744271014,0.92072069,3287.9,3286.7,3.83755541]
[1767744271680,0.92072069,3287.9,3286.7,0.795]
[1767744271881,0.92072069,3287.9,3286.6,0.03042658]
[1767744272084,0.92072069,3287.9,3286.2,0.001]
[1767744272085,0.99745625,3287.5,3286.2,3.83902842]
[1767744272313,0.99745625,3287.5,3286.2,0.796]
[1767744273510,0.99745625,3287.5,3286.3,0.03042935]
[1767744273806,0.99745625,3287.5,3286.2,0.82643028]
[1767744274039,0.99745625,3287.3,3286.2,1.6920178]
[1767744274214,4.03955895,3287.2,3286.2,1.6920178]
[1767744274588,4.03955895,3287.2,3286.2,4.73502389]
[1767744275914,3.44584956,3287.4,3286.3,0.99957667]
[1767744275915,6.08402032,3287.3,3286.3,0.99957667]
[1767744276111,6.42860528,3287.3,3286.3,0.99957667]
[1767744278813,0.793,3287.2,3286.2,0.001]
[1767744278984,0.82190615,3287.1,3286.2,0.001]
[1767744279387,0.82190615,3287.1,3286.2,1.00057667]
[1767744280001,3.0422878,3287.0,3286.2,1.00057667]
[1767744280406,6.0845756,3287.0,3286.2,1.00057667]
[1767744281316,3.0422878,3287.0,3286.2,1.00057667]
[1767744281612,3.5080072,3287.0,3286.2,1.00057667]
[1767744281911,6.550295,3287.0,3286.2,1.00057667]
[1767744282286,0.99745625,3286.9,3286.2,0.001]
[1767744282797,6.550295,3287.0,3286.2,1.00057667]
[1767744283119,0.6550295,3286.9,3286.2,1.00057667]
[1767744283792,0.6550295,3286.9,3286.5,0.001]
[1767744283998,0.68552179,3286.9,3286.5,0.001]
[1767744284415,0.68552179,3286.9,3286.2,0.001]
[1767744284416,6.08494584,3286.8,3286.2,0.001]
[1767744285614,6.11543813,3286.8,3286.2,0.001]
[1767744285917,0.67704676,3286.7,3286.2,0.001]
[1767744286213,0.6550295,3286.9,3286.2,0.96310977]
[1767744286214,3.69744006,3286.9,3286.2,0.96310977]
[1767744286524,3.04256549,3286.7,3286.2,0.96310977]
[1767744287015,3.04256549,3286.7,3286.1,1.77364073]
[1767744287016,7.02063398,3286.7,3286.1,1e-08]
[1767744287911,0.03049229,3286.6,3286.1,1e-08]
[1767744289522,3.04275064,3286.5,3286.1,1e-08]
[1767744289734,0.30732429,3286.4,3286.1,1e-08]
[1767744290089,4.39598624,3285.8,3284.9,0.96210977]
[1767744290423,0.793,3286.0,3284.9,0.96210977]
[1767744290622,0.61244892,3285.9,3284.9,0.96210977]
[1767744290925,0.935503,3285.8,3284.5,1.75810977]
[1767744291098,0.61244892,3285.9,3284.6,0.96210977]
[1767744291302,4.39598624,3286.1,3284.6,0.96210977]
[1767744291303,0.793,3286.1,3285.0,0.96210977]
[1767744291610,6.08642726,3286.0,3285.0,0.96210977]
[1767744291824,0.935503,3285.9,3284.5,0.796]
[1767744292028,10.06514389,3286.0,3284.6,0.96210977]
[1767744292189,0.935503,3285.8,3284.3,1.75810977]
[1767744292390,1.728503,3285.8,3284.6,4.00659375]
[1767744292998,0.793,3285.8,3284.7,0.96210977]
[1767744293198,0.793,3285.8,3284.3,0.796]
[1767744293199,0.935503,3285.7,3284.4,3.04468372]
[1767744293405,0.793,3285.8,3284.4,3.04468372]
[1767744293406,0.935503,3285.5,3284.5,0.38406837]
[1767744293718,3.0437694,3285.4,3284.5,0.38406837]
[1767744294220,3.0437694,3285.4,3284.3,0.796]
[1767744294423,3.0437694,3285.4,3284.4,3.04468348]
[1767744294921,1.1083533,3285.6,3284.5,6.11957992]
[1767744295125,3.04342379,3285.8,3284.5,6.11957992]
[1767744295126,3.0434245,3285.8,3284.6,0.96210977]
[1767744295332,3.44436648,3285.8,3284.7,0.7501867]
[1767744295498,3.44436648,3285.8,3284.9,0.001]
[1767744295895,0.40094198,3285.8,3285.0,0.96210977]
[1767744296205,6.11562327,3286.7,3285.2,0.96210977]
[1767744296553,6.08513098,3286.7,3285.4,0.96210977]
[1767744296700,7.48764408,3286.7,3285.6,0.96210977]
[1767744297018,7.48764408,3286.7,3285.8,0.96210977]
[1767744297906,3.65012976,3286.7,3285.8,0.96210977]
[1767744298314,0.794,3287.2,3285.8,0.96210977]
[1767744299027,0.03049229,3287.1,3285.8,0.96210977]
[1767744299425,3.0422839,3287.1,3285.9,0.96210977]
[1767744299730,0.03049229,3287.0,3285.9,0.96210977]
[1767744299898,0.03049229,3287.0,3286.1,0.96210977]
[1767744300311,6.0845678,3287.1,3286.1,0.96210977]
[1767744300518,6.11506009,3287.1,3286.1,0.96210977]
[1767744301938,6.11506009,3287.1,3286.2,0.90014461]
[1767744301939,0.03049229,3287.1,3286.2,0.90014461]
[1767744302145,3.04180756,3287.6,3286.3,0.90014461]
[1767744302343,3.04180756,3287.6,3286.5,0.90014461]
[1767744302542,0.23920346,3287.7,3286.5,0.90014461]
[1767744302761,1e-08,3287.7,3286.5,0.90014461]
[1767744303064,0.91113766,3289.4,3286.7,0.90014461]
[1767744303360,3.04034538,3289.1,3287.8,6.98323967]
[1767744303526,3.04034538,3289.1,3287.8,0.90014461]
[1767744303842,3.04034538,3289.1,3287.7,0.0187521]
[1767744303843,0.94162995,3289.0,3287.7,0.0187521]
[1767744304022,0.03049229,3289.0,3287.7,0.91889671]
[1767744304228,0.70223207,3288.9,3287.7,0.91889671]
[1767744304449,0.91113766,3288.7,3287.7,0.0187521]
[1767744304644,0.91113766,3288.7,3287.7,3.06036453]
[1767744305151,0.03049229,3288.6,3287.7,0.0187521]
[1767744305319,3.0409001,3288.5,3287.7,0.0187521]
[1767744305637,0.03049229,3288.5,3287.7,0.95473315]
[1767744307639,0.03049229,3288.5,3287.8,0.93598105]
[1767744307952,0.002,3288.7,3287.8,0.93598105]
[1767744308643,1e-08,3288.7,3287.8,0.93598105]
[1767744309744,1e-08,3288.7,3288.0,0.93598105]
[1767744310456,0.002,3289.6,3288.5,0.93598105]
[1767744310615,0.00050138,3289.0,3288.5,0.93598105]
[1767744310929,0.00050138,3289.0,3288.6,0.17319811]
[1767744311589,0.002,3289.6,3288.6,1.10917916]
[1767744311712,0.002,3289.6,3288.7,0.93598105]
[1767744313917,0.03249229,3289.6,3288.7,0.93598105]
[1767744314318,0.64369103,3289.6,3288.7,0.93598105]
[1767744314538,0.61319874,3289.6,3288.8,0.93598105]
[1767744314847,0.002,3289.6,3288.8,0.93598105]
[1767744315045,3.29457097,3290.6,3289.6,0.93598105]
[1767744315357,3.29457097,3290.6,3289.7,0.93598105]
[1767744315559,0.3294571,3290.5,3289.7,0.93598105]
[1767744315732,6.07699552,3291.1,3289.7,0.93598105]
[1767744316345,9.11549328,3291.1,3289.7,0.93598105]
[1767744317660,3.03849776,3291.1,3289.7,0.93598105]
[1767744317861,6.07881088,3291.2,3289.8,0.93598105]
[1767744318242,9.11721632,3291.2,3289.8,0.93598105]
[1767744318446,0.99122163,3291.1,3289.8,0.93598105]
[1767744319746,0.99122163,3291.1,3289.9,0.93598105]
[1767744319747,6.07718018,3291.0,3289.9,0.93598105]
[1767744319940,0.002,3290.3,3289.9,0.93598105]
[1767744327450,0.002,3290.3,3289.7,0.795]
[1767744327657,0.002,3290.3,3289.5,0.93598105]
[1767744327854,0.002,3290.3,3289.6,0.795]
[1767744329550,0.002,3290.3,3289.7,0.93598105]
[1767744330959,0.002,3290.3,3289.9,0.93598105]
[1767744331182,0.002,3290.3,3290.0,0.90202867]
[1767744331385,0.002,3290.3,3289.6,0.795]
[1767744331675,0.002,3290.3,3289.6,1.7569414]
[1767744331874,0.002,3290.3,3289.7,0.9619414]
[1767744332364,0.002,3290.3,3290.0,0.001]
[1767744332972,0.002,3290.3,3290.0,0.9629414]
[1767744333365,0.002,3290.3,3290.0,0.001]
[1767744333570,0.95096123,3290.3,3290.0,0.001]
[1767744335266,0.002,3290.3,3290.0,0.9629414]
[1767744335461,0.002,3290.6,3290.2,0.9619414]
[1767744335868,3.04098767,3290.6,3290.2,0.9619414]
[1767744336177,3.64897051,3290.6,3290.0,0.001]
[1767744336371,3.04098767,3290.6,3290.0,0.001]
[1767744336565,3.9899489,3290.6,3290.0,0.001]
[1767744338076,0.95096123,3290.6,3290.0,0.001]
[1767744338381,0.95096123,3290.6,3290.0,0.03139513]
[1767744339782,3.98993665,3290.6,3290.0,0.001]
[1767744339984,3.74384817,3290.6,3290.0,0.001]
[1767744340172,0.002,3290.6,3290.0,0.9629414]
[1767744340758,6.0799584,3290.6,3289.7,0.795]
[1767744341172,0.94896123,3290.5,3289.7,0.795]
[1767744341488,0.002,3290.6,3289.7,0.795]
[1767744341658,0.94896123,3290.5,3289.7,0.795]
[1767744342290,0.94896123,3290.5,3289.7,0.97069414]
[1767744342970,0.94896123,3290.5,3289.7,0.795]
[1767744343590,0.002,3290.6,3289.7,0.795]
[1767744343969,0.002,3290.6,3289.8,0.9619414]
[1767744344167,0.95096123,3290.6,3290.0,0.001]
[1767744344492,0.002,3290.3,3290.0,0.001]
[1767744345361,0.002,3290.3,3290.0,0.9629414]
[1767744345973,0.002,3290.3,3290.0,0.001]
[1767744346860,0.002,3290.3,3289.2,0.9619414]
[1767744347062,7.02761905,3290.2,3289.2,0.9619414]
[1767744347266,7.02761905,3290.2,3288.2,0.9619414]
[1767744347267,0.94896123,3290.0,3288.2,0.9619414]
[1767744347487,0.94896123,3290.0,3288.7,0.795]
[1767744347698,0.94896123,3290.0,3288.8,0.9619414]
[1767744347898,0.70296191,3290.1,3288.8,0.9619414]
[1767744349204,0.70296191,3290.1,3288.9,0.9619414]
[1767744349205,6.07902734,3290.0,3288.9,0.9619414]
[1767744349368,3.03951367,3290.0,3288.9,0.9619414]
[1767744349567,3.03951367,3290.0,3289.1,0.9619414]
[1767744350490,6.07902734,3290.0,3289.1,0.9619414]
[1767744350866,3.03951367,3290.0,3289.1,0.9619414]
[1767744351068,6.08047308,3290.3,3289.1,0.9619414]
[1767744351310,0.28424332,3290.2,3289.1,0.9619414]
[1767744351476,0.92071496,3290.1,3289.1,0.9619414]
[1767744351796,0.63647164,3290.1,3289.1,0.9619414]
[1767744352782,0.28416635,3290.0,3288.9,0.9619414]
[1767744352987,0.63647164,3290.1,3288.9,0.9619414]
[1767744353193,0.28416065,3290.0,3288.9,0.9619414]
[1767744353395,6.07921212,3289.9,3288.9,0.9619414]
[1767744353590,6.7507805,3289.9,3288.9,0.9619414]
[1767744355704,9.79038656,3289.9,3288.9,0.9619414]
[1767744356285,9.79038656,3289.9,3289.2,0.001]
[1767744356486,6.7507805,3289.9,3289.2,0.001]
[1767744358587,3.71117444,3289.9,3289.2,0.001]
[1767744358887,3.03960606,3289.9,3289.2,0.9629414]
[1767744359793,6.07921212,3289.9,3289.2,0.001]
[1767744360007,0.94896123,3289.8,3289.2,0.001]
[1767744360377,0.94896123,3289.8,3288.3,0.9619414]
[1767744360603,0.94896123,3289.6,3288.3,0.9619414]
[1767744360985,1.08607794,3289.7,3288.3,0.9619414]
[1767744361199,1.87907794,3289.7,3288.3,0.9619414]
[1767744361601,0.92110494,3289.6,3288.1,0.795]
[1767744361790,0.99794379,3289.4,3288.2,0.38363616]
[1767744362107,0.28001829,3289.5,3287.7,0.98584305]
[1767744362108,0.99794379,3289.2,3287.7,0.98584305]
[1767744362408,6.08032104,3289.3,3288.0,0.98584305]
[1767744362609,6.08032104,3289.3,3288.2,0.98584305]
[1767744362909,7.02035773,3289.3,3288.3,0.98584305]
[1767744363278,3.04010282,3289.4,3288.3,0.98584305]
[1767744364006,6.08020564,3289.4,3288.3,0.98584305]
[1767744364207,9.12030846,3289.4,3288.3,0.98584305]
[1767744365099,0.99794379,3289.3,3287.9,0.98584305]
[1767744365302,1.93797647,3289.3,3287.9,1.78084305]
[1767744366003,9.12075882,3289.2,3287.9,1.78084305]
[1767744367492,0.99794379,3289.1,3287.4,0.98584305]
[1767744367703,12.16101176,3289.2,3287.4,0.98584305]
[1767744367704,0.99794379,3288.9,3287.4,0.98584305]
[1767744367977,0.99794379,3288.9,3286.3,1.39294469]
[1767744367978,0.99794379,3288.6,3286.8,4.0282509]
[1767744368182,0.99794379,3288.6,3287.0,0.98584305]
[1767744368406,0.99794379,3288.4,3286.9,0.795]
[1767744368990,0.99794379,3288.2,3286.4,3.52843897]
[1767744369195,0.99794379,3288.2,3286.5,0.0304275]
[1767744369395,0.99794379,3288.2,3286.6,0.795]
[1767744369619,0.99794379,3288.0,3286.6,0.795]
[1767744369992,0.99794379,3287.8,3286.6,0.795]
[1767744370208,0.99794379,3287.8,3286.3,1.42337404]
[1767744370209,0.99794379,3287.7,3286.3,1.39294469]
[1767744370712,0.99794379,3287.7,3286.0,0.795]
[1767744371627,0.99794379,3287.7,3286.0,3.8381894]
[1767744371798,0.99794379,3287.5,3286.0,4.52634361]
[1767744371995,7.08177903,3287.4,3286.0,1.48315421]
[1767744372314,3.04164876,3287.7,3286.2,0.98584305]
[1767744372514,6.08329752,3287.7,3286.2,0.98584305]
[1767744373692,6.08329752,3287.7,3286.4,0.98584305]
[1767744374590,9.12494628,3287.7,3286.4,0.98584305]
[1767744374829,1.01228901,3287.6,3286.4,0.98584305]
[1767744375325,0.99794379,3287.5,3286.0,0.98584305]
[1767744377218,10.12369665,3287.4,3286.0,0.98584305]
[1767744377415,0.793,3287.3,3286.0,0.98584305]
[1767744377627,1.09166967,3287.2,3286.0,0.98584305]
[1767744378129,1.09166967,3287.2,3285.7,0.796]
[1767744378130,0.99794379,3287.1,3285.7,0.796]
[1767744378495,0.99794379,3287.1,3285.7,3.83947186]
[1767744378689,0.20896135,3287.0,3285.7,5.51667214]
[1767744378923,0.20896135,3287.0,3285.8,0.98584305]
[1767744379323,6.0847607,3286.9,3285.8,0.98584305]
[1767744380343,9.12714105,3286.9,3286.3,0.001]
[1767744380494,6.0847607,3286.9,3286.3,0.001]
[1767744380699,0.93360465,3286.8,3286.3,0.001]
[1767744381314,0.20896135,3287.0,3286.3,0.98684305]
[1767744381517,3.0422878,3287.0,3286.3,0.98684305]
[1767744381714,6.0845756,3287.0,3286.3,0.98684305]
[1767744383227,0.99794379,3287.8,3286.3,0.98684305]
[1767744383391,0.793,3288.0,3286.5,0.98584305]
[1767744383718,0.793,3288.0,3286.7,0.98584305]
[1767744383919,6.0821701,3288.3,3286.7,0.98584305]
[1767744385923,6.0821701,3288.3,3286.9,0.98584305]
[1767744386142,0.99794379,3288.2,3286.4,0.98584305]
[1767744386429,0.99794379,3288.1,3286.4,0.98584305]
[1767744386801,0.99794379,3288.1,3286.7,0.1]
[1767744387230,0.99794379,3288.1,3286.3,0.001]
[1767744387411,0.99794379,3287.9,3286.3,0.001]
[1767744387603,0.99794379,3287.7,3286.3,0.001]
[1767744387801,1.0752667,3287.8,3286.3,0.001]
[1767744387802,0.99794379,3287.5,3286.3,0.001]
[1767744388040,0.99794379,3287.3,3286.3,0.001]
[1767744388241,0.99794379,3287.1,3285.6,0.98584305]
[1767744388439,0.99794379,3287.1,3285.6,4.02942337]
[1767744388733,1.17703817,3287.0,3285.6,3.04358032]
[1767744389438,1.17703817,3287.0,3285.5,3.04364907]
[1767744389605,1.17703817,3287.0,3285.6,3.04358062]
[1767744391146,0.99794379,3286.8,3285.5,3.04366268]
[1767744391438,0.70827045,3286.7,3285.6,0.03043584]
[1767744391605,3.04238035,3286.9,3285.5,6.77569146]
[1767744392004,3.99303409,3286.9,3285.5,6.77569146]
[1767744392629,0.95065374,3286.9,3285.9,0.001]
[1767744393027,3.04199263,3287.4,3286.0,1.77799238]
[1767744393305,4.78645306,3287.6,3286.1,6.11667324]
[1767744393505,4.78645306,3287.6,3286.3,0.98199238]
[1767744393506,4.21937925,3287.6,3286.3,0.98199238]
[1767744394169,3.04164005,3287.7,3286.5,0.98199238]
[1767744394331,6.0821701,3288.3,3286.7,0.98199238]
[1767744394539,0.28310369,3288.2,3286.7,0.98199238]
[1767744394832,6.8761701,3288.3,3286.7,0.98199238]
[1767744395022,0.97071575,3288.2,3286.9,0.98199238]
[1767744395207,0.28328748,3288.1,3286.9,0.98199238]
[1767744395413,0.68761701,3288.2,3286.9,0.98199238]
[1767744396236,6.08272506,3288.0,3286.9,0.98199238]
[1767744398110,0.28378332,3287.9,3286.9,0.98199238]
[1767744398316,6.08309506,3287.8,3286.9,0.98199238]
[1767744398610,0.95065374,3287.7,3286.7,3.04255993]
[1767744398917,0.95065374,3287.7,3286.8,3.04247147]
[1767744399128,0.95065374,3287.7,3286.7,3.04252438]
[1767744399435,0.95065374,3287.7,3286.8,0.68811638]
[1767744399815,0.95065374,3287.7,3286.6,0.796]
[1767744400017,0.95065374,3287.7,3286.6,3.8386403]
[1767744401034,3.04173257,3287.6,3286.6,0.796]
[1767744401234,3.04173257,3287.6,3286.6,0.782479]
[1767744401436,3.04173257,3287.6,3286.7,0.98199238]
[1767744401658,3.65007122,3287.6,3286.7,0.98199238]
[1767744404625,6.69180379,3287.6,3286.7,0.98199238]
[1767744405026,3.65007122,3287.6,3286.8,0.98199238]
[1767744405343,0.002,3287.7,3287.0,0.98199238]
[1767744407318,0.002,3287.7,3287.1,0.98199238]
[1767744409271,0.002,3287.7,3287.2,0.98199238]
[1767744409437,0.002,3287.7,3287.2,1.0124134]
[1767744409766,0.002,3287.7,3287.2,0.98199238]
[1767744409933,0.002,3287.7,3287.3,1.38440832]
[1767744410336,0.002,3287.7,3287.3,0.98199238]
[1767744411148,0.002,3287.7,3286.9,0.98199238]
[1767744412819,0.95265374,3287.7,3286.1,0.98199238]
[1767744413026,1.12521911,3287.6,3286.1,0.98199238]
[1767744413253,1.12521911,3287.6,3286.2,0.98199238]
[1767744413750,6.08365018,3287.5,3286.2,0.98199238]
[1767744414624,0.28382954,3287.4,3286.2,0.98199238]
[1767744414924,1.03599585,3287.3,3286.2,0.98199238]
[1767744415849,0.95065374,3287.1,3285.9,0.001]
[1767744416753,10.07696184,3287.2,3285.9,0.98299238]
[1767744417056,10.07696184,3287.2,3285.9,0.001]
[1767744417057,2.32997902,3287.1,3285.9,0.001]
[1767744417226,1.23438996,3287.0,3285.9,0.001]
[1767744417426,0.28373622,3286.9,3285.9,0.001]
[1767744418250,6.08494584,3286.8,3285.9,0.001]
[1767744418420,2.72920166,3286.7,3285.9,0.001]
[1767744418626,0.99409106,3286.6,3285.3,0.796]
[1767744420356,7.07959234,3286.5,3285.3,0.796]
[1767744420542,7.07959234,3286.5,3285.1,0.98773389]
[1767744421364,10.12234298,3286.5,3285.1,0.98773389]
[1767744421661,1.0122343,3286.4,3285.1,0.98773389]
[1767744422024,1.0122343,3286.4,3285.2,4.01127688]
[1767744422228,3.04288068,3286.4,3285.4,0.9673398]
[1767744422443,3.04288068,3286.4,3285.6,0.9673398]
[1767744423663,3.04247292,3286.8,3285.6,0.9673398]
[1767744423966,0.38364729,3286.7,3285.6,0.9673398]
[1767744424334,6.08531612,3286.6,3285.6,0.9673398]
[1767744425634,3.04265806,3286.6,3285.6,0.9673398]
[1767744427068,3.04265806,3286.6,3285.7,0.9673398]
[1767744427963,6.08531612,3286.6,3285.7,0.9673398]
[1767744428168,0.64689634,3286.5,3285.7,0.9673398]
[1767744428942,3.04284323,3286.4,3285.7,0.9673398]
[1767744429488,3.68969025,3286.5,3285.7,0.9673398]
[1767744429693,0.002,3286.3,3285.8,0.99777378]
[1767744430544,0.002,3286.3,3285.5,0.9673398]
[1767744431188,0.002,3286.3,3285.5,3.04359458]
[1767744431352,0.002,3286.3,3285.6,0.30435946]
[1767744431716,0.002,3286.3,3285.6,0.32836793]
[1767744432142,0.002,3286.3,3285.6,0.29793209]
[1767744433152,0.002,3286.3,3285.6,3.3414472]
[1767744433356,0.002,3286.3,3285.6,0.29793209]
[1767744434273,0.002,3286.3,3285.6,3.34150377]
[1767744434466,0.002,3286.3,3285.7,0.33415038]
[1767744436083,0.002,3286.3,3285.8,0.9673398]
[1767744438091,0.002,3286.3,3285.4,0.9673398]
[1767744439982,0.002,3286.3,3285.6,0.9673398]
[1767744440987,0.002,3286.3,3285.3,0.9673398]
[1767744441291,0.002,3286.3,3285.3,4.01118047]
[1767744441657,0.002,3286.3,3285.4,0.9673398]
[1767744442199,6.08787164,3286.3,3285.1,1.7633398]
[1767744442358,1.80270425,3286.2,3285.2,0.9673398]
[1767744443054,1.80270425,3286.2,3285.7,0.001]
[1767744444201,3.04312102,3286.1,3285.7,0.001]
[1767744444687,6.08624204,3286.1,3285.7,0.001]
[1767744448193,7.04251236,3286.1,3285.7,0.001]
[1767744448357,1.16376298,3286.0,3284.9,0.9673398]
[1767744448558,0.87927827,3286.0,3284.9,0.9673398]
[1767744449086,0.87927827,3286.0,3285.0,0.9673398]
[1767744449396,1.67327827,3286.0,3285.1,0.9673398]
[1767744450201,0.95627032,3285.9,3284.8,0.9673398]
[1767744450369,10.37089314,3285.8,3284.8,0.9673398]
[1767744450579,7.04306804,3285.8,3284.8,0.9673398]
[1767744451300,0.95627032,3285.6,3283.9,0.9673398]
[1767744451472,12.17359544,3285.8,3283.9,0.9673398]
[1767744451473,0.98278236,3285.4,3283.9,0.9673398]
[1767744451676,0.28401288,3285.3,3283.9,0.9673398]
[1767744451901,0.794,3285.3,3284.2,0.96373085]
[1767744452101,0.98278236,3285.6,3284.2,0.96373085]
[1767744452299,3.0437694,3285.4,3284.3,0.96373085]
[1767744452480,1.20617744,3285.3,3284.3,0.96373085]
[1767744452799,1.20617744,3285.3,3283.6,0.796]
[1767744452800,0.98278236,3285.2,3284.0,0.96373085]
[1767744453608,1.20617744,3285.3,3284.0,0.96373085]
[1767744453609,0.41217744,3285.3,3284.0,0.96373085]
[1767744453771,0.794,3285.6,3284.3,0.96373085]
[1767744454068,0.794,3285.5,3284.3,0.96373085]
[1767744454270,0.794,3285.5,3284.6,0.96373085]
[1767744454876,0.794,3285.5,3284.3,0.96373085]
[1767744455077,0.98278236,3285.4,3284.3,0.96373085]
[1767744456205,0.98278236,3285.4,3284.3,4.00847997]
[1767744456376,3.04386205,3285.3,3284.3,0.96373085]
[1767744456684,0.70704833,3285.2,3284.3,0.96373085]
[1767744457476,1.68983069,3285.2,3283.9,0.96373085]
[1767744457883,1.68983069,3285.2,3283.9,4.00882528]
[1767744458087,1.68983069,3285.2,3283.9,0.96373085]
[1767744458412,6.08828006,3285.0,3283.9,0.96373085]
[1767744458589,1.50110624,3284.9,3283.9,0.96373085]
[1767744459009,2.4838886,3284.9,3283.8,0.96373085]
[1767744459215,2.4838886,3284.9,3283.9,0.96373085]
[1767744459216,1.50110624,3284.9,3283.9,0.96373085]
[1767744459507,0.98278236,3284.8,3283.3,0.96373085]
[1767744459692,0.98278236,3284.8,3283.7,0.96373085]
[1767744459693,0.794,3284.7,3283.7,0.96373085]
[1767744460093,0.794,3284.7,3283.7,4.00902685]
[1767744460394,0.794,3284.7,3283.8,0.96373085]
[1767744460597,0.15529386,3284.6,3283.9,0.96373085]
[1767744461732,3.19984376,3284.6,3283.9,0.96373085]
[1767744462088,6.24439366,3284.6,3283.9,0.96373085]
[1767744462289,0.70383937,3284.5,3283.9,0.96373085]
[1767744462485,0.98278236,3285.1,3283.9,0.96373085]
[1767744462486,0.98278236,3285.6,3283.9,0.96373085]
[1767744462690,0.98278236,3285.3,3284.0,0.96373085]
[1767744463707,6.0879094,3285.2,3284.1,0.96373085]
[1767744463903,0.794,3285.1,3284.1,0.96373085]
[1767744464102,3.83790186,3285.3,3284.1,0.96373085]
[1767744464315,0.98478236,3285.9,3284.3,0.96373085]
[1767744464614,0.794,3285.8,3284.3,0.96373085]
[1767744465725,6.88079772,3285.8,3284.5,0.96373085]
[1767744467013,3.04531544,3285.9,3284.5,0.96373085]
[1767744467315,3.04531544,3285.9,3284.7,0.96373085]
[1767744467316,0.002,3285.9,3284.7,0.96373085]
[1767744467490,0.002,3285.9,3284.6,1.00978192]
[1767744467491,0.002,3285.9,3284.9,0.96373085]
[1767744467691,0.002,3285.9,3285.1,0.96373085]
[1767744471217,0.002,3285.9,3285.1,4.00775643]
[1767744471419,0.002,3285.9,3285.1,0.96373085]
[1767744471607,0.98478236,3285.9,3284.5,0.96373085]
[1767744471924,0.98478236,3285.9,3284.5,0.17597309]
[1767744472221,0.98478236,3285.9,3284.9,3.04420047]
[1767744473193,3.04339886,3285.8,3284.8,4.00802006]
[1767744476842,4.02618122,3285.8,3284.8,4.00802006]
[1767744477141,0.002,3285.9,3284.9,0.96373085]
[1767744478625,0.002,3285.9,3285.0,0.99174966]
[1767744478928,0.002,3285.9,3285.2,0.99174966]
[1767744479300,0.002,3285.9,3285.3,0.99174966]
[1767744482929,0.002,3285.9,3285.4,0.9709885]
[1767744483320,0.002,3285.6,3285.4,0.9709885]
[1767744483522,0.002,3285.9,3285.3,3.04385999]
[1767744483721,0.002,3285.9,3285.4,0.60877967]
[1767744484601,0.002,3285.9,3285.3,3.04385999]
[1767744484929,0.002,3285.9,3285.4,3.04373366]
[1767744485914,0.002,3286.2,3285.4,3.04373366]
[1767744486102,0.002,3286.2,3285.4,4.01472216]
[1767744486302,0.002,3286.2,3285.4,4.81072216]
[1767744486534,0.002,3286.2,3285.5,0.78545754]
[1767744487405,0.002,3286.3,3285.6,0.9709885]